fUSD/lending_fUSD_20240601
["ID","MTS","AMOUNT","RATE_DAILY","PERIOD"]
[328366286,1717258233115,-2368.70775081,0.00026767,2]
[328366287,1717258233125,-1816.93519232,0.00026767,2]
[328366288,1717258233134,-354.95,0.00026884,2]
[328366289,1717258233143,-155.0,0.00027,4]
[328366290,1717258233152,-882.71956304,0.00027,2]
[328366291,1717258233161,-600.0,0.00027,2]
[328366292,1717258233171,-336.9348225,0.0002725,2]
[328366293,1717258233180,-150.0,0.00027397,2]
[328366294,1717258233189,-152.52,0.000274,2]
[328366295,1717258233199,-886.81841427,0.00027686,2]
[328366296,1717258233208,-375.12325086,0.00027858,2]
[328366297,1717258233217,-150.0,0.00028118,2]
[328366298,1717258233226,-500.0,0.0002813,2]
[328366299,1717258233236,-500.0,0.0002813,2]
[328366300,1717258233245,-500.0,0.0002813,2]
[328366301,1717258233254,-500.0,0.0002813,2]
[328366302,1717258233263,-500.0,0.0002813,2]
[328366303,1717258233272,-500.0,0.0002813,2]
[328366304,1717258233282,-500.0,0.0002813,2]
[328366305,1717258233291,-500.0,0.0002813,2]
[328366306,1717258233300,-500.0,0.0002813,2]
[328366307,1717258233310,-500.0,0.0002813,2]
[328366308,1717258233319,-500.0,0.0002813,2]
[328366309,1717258233328,-500.0,0.0002813,2]
[328366310,1717258233336,-500.0,0.0002813,2]
[328366311,1717258233346,-500.0,0.0002813,2]
[328366312,1717258233355,-306.0,0.00028809,5]
[328366313,1717258233364,-150.0,0.00028839,2]
[328366314,1717258233372,-2368.70775081,0.00028911,2]
[328366315,1717258233382,-1816.93519232,0.00028911,2]
[328366316,1717258233391,-1500.0,0.00028935,2]
[328366317,1717258233400,-650.0,0.00029,2]
[328366318,1717258233409,-1713.6349,0.00029,2]
[328366319,1717258233418,-150.0,0.00029,2]
[328366320,1717258233427,-504.90138445,0.00029,7]
[328366321,1717258233436,-150.0,0.00029014,2]
[328366322,1717258233450,-152.52,0.00029118,2]
[328366323,1717258233459,-4465.33,0.00029118,2]
[328366324,1717258233468,-4465.33,0.00029118,2]
[328366325,1717258233477,-275.74270436,0.00029127,2]
[328366326,1717258233486,-88439.76066626,0.00029128,2]
[328366327,1717258233495,-500.0,0.00029128,2]
[328366328,1717258233505,-500.0,0.00029128,2]
[328366329,1717258233513,-500.0,0.00029128,2]
[328366330,1717258233523,-500.0,0.00029128,2]
[328366331,1717258233532,-500.0,0.00029128,2]
[328366332,1717258233542,-500.0,0.00029128,2]
[328366333,1717258233551,-500.0,0.00029128,2]
[328366334,1717258233560,-610.0,0.00029128,2]
[328366335,1717258233570,-354.95,0.00029148,2]
[328366336,1717258233579,-152.0,0.0002919,3]
[328366337,1717258233588,-150.0,0.00029318,2]
[328366338,1717258233597,-150.0,0.00029384,2]
[328366339,1717258233607,-150.0,0.0002956,2]
[328366340,1717258233616,-210.64520589,0.00029698,2]
[328366341,1717258233625,-152.0,0.00029698,2]
[328366342,1717258233635,-150.0,0.00029806,2]
[328366343,1717258233644,-150.0,0.00029807,2]
[328366344,1717258233654,-150.0,0.00029924,2]
[328366345,1717258233663,-665.18372092,0.00029968,2]
[328366346,1717258233672,-687.72293602,0.0003,4]
[328366347,1717258233681,-1485.85566556,0.00030009,4]
[328366348,1717258233691,-4802.97,0.0003001,2]
[328366349,1717258233701,-150.0,0.00030281,2]
[328366350,1717258233710,-150.0,0.00030303,2]
[328366351,1717258233719,-150.97,0.0003031,2]
[328366352,1717258233729,-886.81841427,0.00030443,2]
[328366353,1717258233738,-150.0,0.00030531,2]
[328366354,1717258233747,-7363.55,0.00030583,5]
[328366355,1717258233756,-7223.49,0.00030602,5]
[328366356,1717258233767,-207.0,0.0003071,2]
[328366357,1717258233776,-209.0,0.0003071,2]
[328366358,1717258233785,-3516.0346194,0.00031,3]
[328366359,1717258233793,-700.0,0.00031,2]
[328366360,1717258233803,-150.0,0.00031002,2]
[328366361,1717258233812,-166.66666668,0.00031025,7]
[328366362,1717258233821,-2368.70775081,0.00031056,10]
[328366363,1717258233830,-1816.93519232,0.00031056,10]
[328366364,1717258233839,-153.73703161,0.00031145,7]
[328366365,1717258233848,-1500.0,0.0003116,2]
[328366366,1717258233858,-264.50235253,0.00031193,7]
[328366367,1717258233867,-356.87738157,0.000312,2]
[328366368,1717258233876,-158.63613536,0.00031229,7]
[328366369,1717258233886,-158.9121106,0.00031269,7]
[328366370,1717258233895,-167.69499567,0.00031288,7]
[328366371,1717258233905,-207.0,0.0003134,2]
[328366372,1717258233915,-209.0,0.0003134,2]
[328366373,1717258233924,-4465.33,0.00031387,2]
[328366374,1717258233934,-42953.93043091,0.00031397,2]
[328366375,1717258233943,-354.95,0.00031411,2]
[328366376,1717258233953,-16518.71768411,0.000315,4]
[328366377,1717258233974,-2657.2665935,0.000315,4]
[328366378,1717258233985,-6099.82610271,0.000315,4]
[328366379,1717258233996,-1075.9549519,0.000315,4]
[328366380,1717258234007,-1301.40420275,0.000315,4]
[328366381,1717258234018,-259.94301548,0.000315,4]
[328366382,1717258234030,-2144.12818391,0.000315,4]
[328366383,1717258234039,-150.0,0.00031651,2]
[328366384,1717258234048,-158.63613536,0.00031662,7]
[328366385,1717258234057,-160.2975206,0.00031676,7]
[328366386,1717258234066,-181.04717684,0.0003168,2]
[328366387,1717258234075,-8185.24072555,0.000317,3]
[328366388,1717258234085,-336.9348225,0.000317,2]
[328366389,1717258234094,-168.62770999,0.000317,2]
[328366390,1717258234103,-375.12325086,0.000317,4]
[328366391,1717258234112,-1000.0,0.000317,11]
[328366392,1717258234123,-150.0,0.00031723,2]
[328366393,1717258234133,-158.9121106,0.00031773,7]
[328366394,1717258234142,-172.3172339,0.00031787,2]
[328366395,1717258234151,-152.52,0.00031787,2]
[328366396,1717258234160,-152.53,0.0003179,2]
[328366397,1717258234169,-152.53,0.0003179,2]
[328366398,1717258234178,-152.53,0.0003179,2]
[328366399,1717258234188,-152.53,0.0003179,2]
[328366400,1717258234197,-152.52,0.0003179,2]
[328366401,1717258234205,-152.52,0.0003179,2]
[328366402,1717258234215,-152.52,0.0003179,2]
[328366403,1717258234224,-152.52,0.0003179,2]
[328366404,1717258234233,-152.52,0.0003179,2]
[328366405,1717258234242,-152.52,0.0003179,2]
[328366406,1717258234251,-80242.39376181,0.00031797,2]
[328366407,1717258234260,-6473.78,0.00031799,2]
[328366408,1717258234270,-150.0,0.00031799,10]
[328366409,1717258234279,-218693.33610343,0.000318,2]
[328366410,1717258234291,-1074610.47871906,0.000318,2]
[328366411,1717258234303,-1445.22698625,0.000318,2]
[328366412,1717258234314,-6329.55979309,0.000318,2]
[328366413,1717258234325,-4903.46776207,0.000318,2]
[328366414,1717258234565,-12937.23114623,0.000318,2]
[328366415,1717258234574,-151.0,0.000318,7]
[328366416,1717258234582,-666.827776,0.000318,2]
[328366417,1717258234591,-666.827776,0.000318,2]
[328366418,1717258234600,-2100.0,0.000318,11]
[328366419,1717258234610,-8185.24072546,0.00031836,3]
[328366420,1717258234619,-3200.0,0.000319,11]
[328366421,1717258234628,-150.0,0.00031944,2]
[328366422,1717258234637,-152.52,0.00031963,2]
[328366423,1717258234647,-207.0,0.0003197,2]
[328366424,1717258234656,-209.0,0.0003197,2]
[328366425,1717258234665,-8185.24072546,0.00031973,3]
[328366426,1717258234674,-2500.0,0.00032041,2]
[328366427,1717258234683,-150.0,0.00032075,2]
[328366428,1717258234691,-152.53,0.00032101,2]
[328366429,1717258234701,-8185.24072546,0.00032109,3]
[328366430,1717258234710,-183.58255772,0.0003211,10]
[328366431,1717258234719,-237073.29870442,0.00032111,2]
[328366432,1717258234728,-299.614037,0.00032111,7]
[328366433,1717258234737,-666.827776,0.00032111,2]
[328366434,1717258234746,-666.827776,0.00032111,2]
[328366435,1717258234756,-150.0,0.00032126,2]
[328366436,1717258234765,-150.0,0.00032146,2]
[328366437,1717258234774,-4300.0,0.000322,11]
[328366438,1717258234784,-5003.93786276,0.00032245,4]
[328366439,1717258234795,-3181.3028627,0.00032245,4]
[328366440,1717258234804,-150.0,0.00032247,2]
[328366441,1717258234813,-1500.0,0.00032248,2]
[328366442,1717258234823,-150.0,0.00032248,2]
[328366443,1717258234832,-2895.13240928,0.00032254,5]
[328366445,1717258237987,-147.06222038,0.00029028,2]
[328366446,1717258238002,-166.06620311,0.00029028,2]
[328366447,1717258238013,-4392.62759072,0.00032254,5]
[328366448,1717258238024,-5400.0,0.000323,11]
[328366449,1717258238034,-150.0,0.00032354,2]
[328366450,1717258238043,-158.63613536,0.00032366,7]
[328366451,1717258238053,-8185.24072546,0.00032382,4]
[328366452,1717258238062,-152.29494981,0.00032386,7]
[328366453,1717258238072,-122.92447554,0.00032391,2]
[328366454,1717258238087,-27.07552446,0.00032391,2]
[328366455,1717258238096,-1000.0,0.000324,11]
[328366456,1717258238106,-150.0,0.00032444,2]
[328366457,1717258238116,-5006.6,0.00032448,2]
[328366458,1717258238126,-168.62770997,0.0003245,2]
[328366459,1717258238136,-150.0,0.00032491,2]
[328366460,1717258238146,-1645.3454874,0.00032496,2]
[328366461,1717258238155,-150.79857822,0.000325,2]
[328366462,1717258238165,-150.0,0.000325,7]
[328366463,1717258238175,-1000.0,0.000325,11]
[328366464,1717258238185,-8185.24072546,0.00032518,4]
[328366465,1717258238194,-150.0,0.00032519,2]
[328366466,1717258238203,-877.31197449,0.00032522,2]
[328366467,1717258238218,-622.68802551,0.00032522,2]
[328366468,1717258238228,-167.55088343,0.00032548,30]
[328366469,1717258238237,-150.0,0.00032551,2]
[328366470,1717258238246,-150.0,0.00032558,2]
[328366471,1717258238256,-155.38548913,0.00032566,7]
[328366472,1717258238265,-158.9121106,0.00032583,7]
[328366473,1717258238275,-155.38548913,0.00032591,7]
[328366474,1717258238284,-1500.0,0.00032595,2]
[328366475,1717258238293,-840.0780022,0.00032596,2]
[328366476,1717258238308,-10086.7002,0.00032596,2]
[328366477,1717258238321,-5916.07874654,0.00032596,2]
[328366478,1717258238333,-769.96443153,0.00032596,2]
[328366479,1717258238344,-10056.86501993,0.00032596,2]
[328366480,1717258238353,-1623.5112461,0.00032596,2]
[328366481,1717258238363,-239.7950794,0.00032596,2]
[328366482,1717258238372,-2293.4995709,0.00032596,2]
[328366483,1717258238381,-5566.8494752,0.00032596,2]
[328366484,1717258238390,-1907.64844733,0.00032599,4]
[328366485,1717258238400,-40744.71990909,0.000326,2]
[328366486,1717258238409,-207.0,0.000326,2]
[328366487,1717258238418,-209.0,0.000326,2]
[328366489,1717258238427,-566.311543,0.000326,2]
[328366491,1717258238437,-1000.0,0.000326,11]
[328366492,1717258238450,-947.63650848,0.00032614,2]
[328366493,1717258238459,-150.0,0.00032616,2]
[328366494,1717258238468,-2500.0,0.00032627,2]
[328366495,1717258238478,-857.7383017,0.00032632,2]
[328366496,1717258238487,-5000.0,0.00032638,2]
[328366497,1717258238496,-152.29494982,0.00032649,7]
[328366498,1717258238506,-1550.02,0.00032652,2]
[328366499,1717258238515,-8185.24072546,0.00032655,4]
[328366500,1717258238527,-158.9121106,0.00032659,7]
[328366501,1717258238537,-2500.0,0.00032672,2]
[328366502,1717258238546,-5000.0,0.00032679,2]
[328366503,1717258238560,-167.55088343,0.00032685,30]
[328366504,1717258238569,-150.0,0.0003269,2]
[328366505,1717258238578,-150.0,0.00032694,2]
[328366506,1717258238587,-1500.0,0.00032695,2]
[328366507,1717258238597,-15779.08,0.00032697,2]
[328366508,1717258238607,-152.53,0.00032697,2]
[328366509,1717258238617,-150.0,0.000327,2]
[328366510,1717258238626,-25000.0,0.00032707,2]
[328366511,1717258238636,-666.827776,0.00032707,2]
[328366512,1717258238645,-666.827776,0.00032707,2]
[328366513,1717258238654,-150.0,0.00032714,2]
[328366514,1717258238664,-150.0,0.00032717,2]
[328366515,1717258238673,-1500.0,0.00032733,2]
[328366516,1717258238682,-150.79857822,0.00032733,2]
[328366517,1717258238692,-300.0,0.00032744,2]
[328366518,1717258238702,-221.0,0.0003276,2]
[328366519,1717258238712,-2500.0,0.00032764,2]
[328366520,1717258238721,-158.9121106,0.00032767,7]
[328366521,1717258238731,-1000.0,0.00032776,2]
[328366522,1717258238740,-231.83931964,0.00032776,2]
[328366523,1717258238750,-150.0,0.00032776,2]
[328366524,1717258238759,-586.28503432,0.00032776,2]
[328366525,1717258238769,-8185.24072546,0.00032791,4]
[328366526,1717258238778,-3549.02452891,0.000328,2]
[328366527,1717258238788,-2734.57,0.00032805,2]
[328366528,1717258238797,-1456.84233466,0.0003281,2]
[328366529,1717258238807,-1500.0,0.00032812,2]
[328366530,1717258238816,-158.9121106,0.00032819,7]
[328366531,1717258238826,-167.55088343,0.00032822,30]
[328366532,1717258238835,-150.0,0.00032844,2]
[328366533,1717258238845,-1645.3454874,0.00032848,2]
[328366534,1717258238855,-1500.0,0.00032862,2]
[328366535,1717258238864,-152.53,0.00032866,2]
[328366536,1717258238874,-10000.0,0.0003287,11]
[328366537,1717258238885,-500.0,0.00032876,11]
[328366538,1717258238894,-500.0,0.00032876,11]
[328366539,1717258238903,-500.0,0.00032876,11]
[328366540,1717258238912,-500.0,0.00032876,11]
[328366541,1717258238921,-500.0,0.00032876,11]
[328366542,1717258238930,-500.0,0.00032876,11]
[328366543,1717258238939,-500.0,0.00032876,11]
[328366544,1717258238949,-500.0,0.00032876,11]
[328366545,1717258238959,-500.0,0.00032876,11]
[328366546,1717258238968,-500.0,0.00032876,11]
[328366547,1717258238977,-500.0,0.00032876,11]
[328366548,1717258238986,-500.0,0.00032876,11]
[328366549,1717258238996,-500.0,0.00032876,11]
[328366550,1717258239005,-502.58674056,0.00032876,11]
[328366551,1717258239014,-500.0,0.00032876,2]
[328366552,1717258239024,-644.32506844,0.00032876,2]
[328366553,1717258239033,-500.0,0.00032876,2]
[328366554,1717258239043,-500.0,0.00032876,2]
[328366555,1717258239052,-480.11735005,0.00032876,2]
[328366556,1717258239063,-447.02786322,0.00032876,11]
[328366557,1717258239072,-280.40481019,0.00032876,2]
[328366558,1717258239082,-793.52699291,0.00032876,30]
[328366559,1717258239092,-526.92652977,0.00032876,11]
[328366560,1717258239101,-500.0,0.00032876,11]
[328366561,1717258239111,-168.61386621,0.00032876,11]
[328366562,1717258239124,-1001.02074263,0.00032876,2]
[328366563,1717258239133,-566.44075999,0.00032876,11]
[328366564,1717258239143,-500.0,0.00032876,11]
[328366565,1717258239154,-500.0,0.00032876,11]
[328366566,1717258239164,-500.0,0.00032876,2]
[328366567,1717258239173,-500.0,0.00032876,2]
[328366568,1717258239184,-500.0,0.00032876,2]
[328366569,1717258239193,-510.65597759,0.00032876,2]
[328366570,1717258239203,-500.0,0.00032876,11]
[328366571,1717258239213,-500.0,0.00032876,11]
[328366572,1717258239222,-500.0,0.00032876,11]
[328366573,1717258239232,-500.0,0.00032876,11]
[328366574,1717258239241,-500.0,0.00032876,11]
[328366575,1717258239251,-500.0,0.00032876,11]
[328366576,1717258239260,-500.0,0.00032876,11]
[328366577,1717258239270,-500.0,0.00032876,11]
[328366578,1717258239279,-500.0,0.00032876,11]
[328366579,1717258239289,-421.21464085,0.00032876,11]
[328366580,1717258239299,-305.0095392,0.00032876,11]
[328366581,1717258239309,-523.34633066,0.00032876,11]
[328366582,1717258239319,-500.0,0.00032876,11]
[328366583,1717258239328,-500.0,0.00032876,11]
[328366584,1717258239338,-484.78616849,0.00032876,11]
[328366585,1717258239348,-551.65208709,0.00032876,11]
[328366586,1717258239358,-405.39857689,0.00032876,11]
[328366587,1717258239367,-299.02848921,0.00032876,11]
[328366588,1717258239377,-3627.40848946,0.00032876,2]
[328366589,1717258239387,-500.0,0.00032876,2]
[328366590,1717258239397,-500.0,0.00032876,2]
[328366591,1717258239406,-500.0,0.00032876,2]
[328366592,1717258239416,-500.0,0.00032876,2]
[328366593,1717258239426,-500.0,0.00032876,2]
[328366594,1717258239437,-500.0,0.00032876,2]
[328366595,1717258239450,-500.0,0.00032876,2]
[328366596,1717258239460,-500.0,0.00032876,2]
[328366597,1717258239470,-500.0,0.00032876,2]
[328366598,1717258239480,-500.0,0.00032876,2]
[328366599,1717258239489,-500.0,0.00032876,2]
[328366600,1717258239499,-500.0,0.00032876,2]
[328366601,1717258239508,-500.0,0.00032876,2]
[328366602,1717258239519,-500.0,0.00032876,2]
[328366603,1717258239528,-500.0,0.00032876,11]
[328366604,1717258239538,-500.0,0.00032876,11]
[328366605,1717258239548,-500.0,0.00032876,11]
[328366606,1717258239557,-500.0,0.00032876,11]
[328366607,1717258239567,-500.0,0.00032876,11]
[328366608,1717258239577,-577.85262101,0.00032876,11]
[328366609,1717258239587,-500.0,0.00032876,11]
[328366610,1717258239597,-516.62061594,0.00032876,11]
[328366611,1717258239606,-248.45962993,0.00032876,11]
[328366612,1717258239616,-500.0,0.00032876,2]
[328366613,1717258239625,-240.47084126,0.00032876,2]
[328366614,1717258239635,-500.0,0.00032876,2]
[328366615,1717258239645,-500.0,0.00032876,2]
[328366616,1717258239655,-500.0,0.00032876,2]
[328366617,1717258239666,-500.0,0.00032876,2]
[328366618,1717258239675,-500.0,0.00032876,2]
[328366619,1717258239685,-500.0,0.00032876,2]
[328366620,1717258239695,-515.659394,0.00032876,2]
[328366621,1717258239704,-267.2,0.00032876,11]
[328366622,1717258239714,-527.27,0.00032876,2]
[328366623,1717258239724,-527.27,0.00032876,2]
[328366624,1717258239733,-527.27,0.00032876,2]
[328366625,1717258239743,-527.27,0.00032876,2]
[328366626,1717258239753,-527.27,0.00032876,2]
[328366627,1717258239762,-527.27,0.00032876,2]
[328366628,1717258239772,-527.27,0.00032876,2]
[328366629,1717258239782,-527.27,0.00032876,2]
[328366630,1717258239792,-527.27,0.00032876,2]
[328366631,1717258239802,-500.0,0.00032876,11]
[328366632,1717258239812,-527.27,0.00032876,2]
[328366634,1717258239821,-303.26620854,0.00032876,11]
[328366635,1717258239831,-527.27,0.00032876,2]
[328366636,1717258239841,-527.27,0.00032876,2]
[328366637,1717258239851,-527.27,0.00032876,2]
[328366638,1717258239860,-500.0,0.00032876,11]
[328366639,1717258239870,-500.0,0.00032876,11]
[328366640,1717258239879,-500.0,0.00032876,11]
[328366641,1717258239890,-542.53,0.00032876,11]
[328366642,1717258239899,-500.0,0.00032876,11]
[328366643,1717258239909,-500.0,0.00032876,11]
[328366644,1717258239918,-500.0,0.00032876,2]
[328366645,1717258240082,-500.0,0.00032876,11]
[328366646,1717258240093,-500.0,0.00032876,2]
[328366647,1717258240103,-500.0,0.00032876,11]
[328366648,1717258240112,-500.0,0.00032876,2]
[328366649,1717258240122,-500.0,0.00032876,2]
[328366650,1717258240132,-582.72067589,0.00032876,11]
[328366651,1717258240142,-500.0,0.00032876,2]
[328366652,1717258240152,-500.0,0.00032876,2]
[328366653,1717258240162,-500.0,0.00032876,2]
[328366654,1717258240171,-500.0,0.00032876,2]
[328366655,1717258240180,-500.0,0.00032876,2]
[328366656,1717258240189,-500.0,0.00032876,2]
[328366657,1717258240199,-500.0,0.00032876,2]
[328366658,1717258240208,-20000.0,0.00032876,2]
[328366659,1717258240217,-20000.0,0.00032876,2]
[328366660,1717258240227,-500.0,0.00032876,2]
[328366661,1717258240236,-500.0,0.00032876,2]
[328366662,1717258240246,-20000.0,0.00032876,2]
[328366663,1717258240255,-547.63319698,0.00032876,11]
[328366664,1717258240264,-500.0,0.00032876,11]
[328366665,1717258240274,-500.0,0.00032876,11]
[328366666,1717258240283,-20000.0,0.00032876,2]
[328366667,1717258240293,-505.61680204,0.00032876,11]
[328366668,1717258240303,-20000.0,0.00032876,2]
[328366669,1717258240312,-500.0,0.00032876,11]
[328366670,1717258240321,-10431.26089343,0.00032876,2]
[328366671,1717258240330,-500.0,0.00032876,11]
[328366672,1717258240340,-187.57955132,0.00032876,11]
[328366673,1717258240350,-500.0,0.00032876,2]
[328366674,1717258240359,-232.84022362,0.00032876,2]
[328366675,1717258240368,-553.52403628,0.00032876,11]
[328366676,1717258240378,-500.0,0.00032876,11]
[328366677,1717258240387,-617.31865412,0.00032876,11]
[328366678,1717258240396,-973.13,0.00032876,2]
[328366679,1717258240406,-973.13,0.00032876,2]
[328366680,1717258240415,-973.13,0.00032876,2]
[328366682,1717258240425,-973.13,0.00032876,2]
[328366683,1717258240434,-973.13,0.00032876,2]
[328366684,1717258240449,-973.13,0.00032876,2]
[328366685,1717258240459,-973.13,0.00032876,2]
[328366686,1717258240468,-973.13,0.00032876,2]
[328366688,1717258240478,-973.13,0.00032876,2]
[328366689,1717258240489,-156.19544388,0.00032876,11]
[328366690,1717258240499,-973.13,0.00032876,2]
[328366691,1717258240508,-973.13,0.00032876,2]
[328366692,1717258240519,-973.13,0.00032876,2]
[328366693,1717258240528,-973.13,0.00032876,2]
[328366694,1717258240539,-973.13,0.00032876,2]
[328366695,1717258240549,-500.0,0.00032876,2]
[328366696,1717258240558,-340.72799408,0.00032876,2]
[328366697,1717258240580,-159.27200592,0.00032876,2]
[328366698,1717258240589,-500.0,0.00032876,2]
[328366699,1717258240598,-500.0,0.00032876,2]
[328366700,1717258240607,-500.0,0.00032876,2]
[328366701,1717258240616,-500.0,0.00032876,2]
[328366702,1717258240625,-496.12407674,0.00032876,2]
[328366703,1717258240637,-3.87592326,0.00032876,2]
[328366704,1717258240647,-370.27272899,0.00032876,11]
[328366705,1717258240656,-149.40815789,0.00032876,2]
[328366706,1717258240693,-561.82928208,0.00032089,2]
[328366707,1717258240712,-311.184893,0.00032089,2]
[328366708,1717258240725,-626.98582492,0.00032089,2]
[328366709,1717258240734,-1500.0,0.00032146,2]
[328366710,1717258240744,-1500.0,0.00032264,2]
[328366711,1717258240753,-1000.0,0.000327,11]
[328366712,1717258240762,-350.59184211,0.00032876,2]
[328366713,1717258240772,-509.59915059,0.00032876,2]
[328366714,1717258240781,-500.0,0.00032876,11]
[328366715,1717258240791,-500.0,0.00032876,11]
[328366716,1717258240800,-307.24382551,0.00032876,11]
[328366717,1717258240810,-544.40161227,0.00032876,11]
[328366718,1717258240819,-500.0,0.00032876,11]
[328366719,1717258240828,-535.85953354,0.00032876,11]
[328366720,1717258240838,-557.05388484,0.00032876,11]
[328366721,1717258240847,-155.0,0.00032876,11]
[328366722,1717258240857,-502.65540958,0.00032876,11]
[328366723,1717258240867,-535.62153452,0.00032876,11]
[328366724,1717258240876,-500.0,0.00032876,11]
[328366725,1717258240885,-500.0,0.00032876,11]
[328366726,1717258240894,-500.0,0.00032876,11]
[328366727,1717258240904,-500.0,0.00032876,11]
[328366728,1717258240913,-469.63661556,0.00032876,11]
[328366729,1717258240922,-500.0,0.00032876,11]
[328366730,1717258240931,-500.0,0.00032876,11]
[328366731,1717258240941,-584.1027331,0.00032876,11]
[328366732,1717258240951,-526.8927267,0.00032876,11]
[328366733,1717258240960,-500.0,0.00032876,11]
[328366734,1717258240969,-507.81899733,0.00032876,11]
[328366735,1717258240979,-334.70375465,0.00032876,11]
[328366736,1717258240988,-560.40350812,0.00032876,11]
[328366737,1717258240997,-500.0,0.00032876,11]
[328366738,1717258241007,-407.93872576,0.00032876,11]
[328366739,1717258241016,-500.0,0.00032876,2]
[328366740,1717258241027,-500.0,0.00032876,2]
[328366741,1717258241036,-500.0,0.00032876,2]
[328366742,1717258241045,-500.0,0.00032876,2]
[328366743,1717258241054,-500.0,0.00032876,2]
[328366744,1717258241063,-500.0,0.00032876,2]
[328366745,1717258241072,-324.77164622,0.00032876,2]
[328366746,1717258241081,-500.0,0.00032876,11]
[328366747,1717258241090,-559.71651957,0.00032876,11]
[328366748,1717258241100,-500.0,0.00032876,11]
[328366749,1717258241109,-500.0,0.00032876,11]
[328366750,1717258241119,-500.0,0.00032876,11]
[328366751,1717258241130,-188.38590625,0.00032876,11]
[328366752,1717258241140,-512.03973792,0.00032876,11]
[328366753,1717258241149,-500.83356571,0.00032876,11]
[328366754,1717258241158,-199.66761701,0.00032876,11]
[328366755,1717258241167,-550.96854895,0.00032876,11]
[328366756,1717258241177,-500.0,0.00032876,11]
[328366757,1717258241187,-285.13117907,0.00032876,11]
[328366758,1717258241196,-500.0,0.00032876,11]
[328366759,1717258241206,-500.0,0.00032876,11]
[328366760,1717258241215,-610.03259433,0.00032876,11]
[328366761,1717258241224,-523.99426872,0.00032876,11]
[328366762,1717258241234,-500.0,0.00032876,2]
[328366763,1717258241243,-500.0,0.00032876,2]
[328366764,1717258241251,-500.0,0.00032876,2]
[328366765,1717258241260,-500.0,0.00032876,2]
[328366766,1717258241271,-520.84081729,0.00032876,2]
[328366767,1717258241280,-526.31200238,0.00032876,11]
[328366768,1717258241289,-368.18278963,0.00032876,11]
[328366769,1717258241298,-500.0,0.00032876,11]
[328366770,1717258241307,-500.0,0.00032876,11]
[328366771,1717258241316,-500.0,0.00032876,11]
[328366772,1717258241326,-500.0,0.00032876,11]
[328366773,1717258241335,-500.0,0.00032876,11]
[328366774,1717258241344,-500.0,0.00032876,11]
[328366775,1717258241353,-500.0,0.00032876,11]
[328366776,1717258241365,-500.0,0.00032876,11]
[328366777,1717258241378,-500.0,0.00032876,11]
[328366778,1717258241392,-500.16371308,0.00032876,11]
[328366779,1717258241405,-533.8,0.00032876,11]
[328366780,1717258241417,-533.8,0.00032876,11]
[328366781,1717258241428,-533.8,0.00032876,11]
[328366782,1717258241439,-533.8,0.00032876,11]
[328366783,1717258241454,-533.8,0.00032876,11]
[328366784,1717258241466,-533.8,0.00032876,11]
[328366785,1717258241478,-533.8,0.00032876,11]
[328366786,1717258241490,-533.8,0.00032876,11]
[328366787,1717258241502,-533.8,0.00032876,11]
[328366788,1717258241513,-533.8,0.00032876,11]
[328366789,1717258241527,-533.8,0.00032876,11]
[328366790,1717258241541,-533.8,0.00032876,11]
[328366791,1717258241553,-533.8,0.00032876,11]